[Event "FIDE WSTC Open 65 2025"]
[Site "Prague"]
[Date "2025.02.17"]
[Round "1.1"]
[White "Mojzis, Jaroslav"]
[Black "Knaak, Rainer"]
[Result "1/2-1/2"]
[Annotator "ChessBase"]
[ECO "A13"]
[WhiteElo "2089"]
[BlackElo "2464"]
[PlyCount "93"]
[EventDate "2025.02.17"]
[EventType "team-tourn"]
[EventCountry "CZE"]
[SourceTitle "playchess.com"]
[Source "ChessBase"]
[SourceQuality "1"]
[TimeControl "40/5400+30:1800+30"]

1. Nf3 {[%emt 0:00:08]} d5 {[%emt 0:00:13]} 2. g3 {[%emt 0:00:08]} c5 {[%emt 0:01:04]} 3. Bg2 {[%emt 0:00:10]} Nf6 {[%emt 0:00:07]} 4. O-O {[%emt 0:00:49]} e6 {[%emt 0:00:24]} 5. c4 {[%emt 0:00:42]} d4 {[%emt 0:00:22]} 6. e3 {[%emt 0:00:15]} Nc6 {[%emt 0:00:06]} 7. exd4 {[%emt 0:00:38]} cxd4 {[%emt 0:00:05]} 8. d3 {[%emt 0:02:05]} h6 {[%emt 0:00:24]} 9. b3 {[%emt 0:06:19]} Bd6 {[%emt 0:04:07]} 10. Ba3 {[%emt 0:01:42]} O-O {[%emt 0:00:19]} 11. Bxd6 {[%emt 0:16:01]} Qxd6 {[%emt 0:00:06]} 12. Nbd2 {[%emt 0:00:07]} e5 {[%emt 0:01:37]} 13. Re1 {[%emt 0:00:24]} Bf5 {[%emt 0:17:52]} 14. Qe2 {[%emt 0:04:18]} Rae8 {[%emt 0:14:24]} 15. Nh4 {[%emt 0:09:40]} Bh7 {[%emt 0:00:10]} 16. a3 {[%emt 0:05:46]} a5 {[%emt 0:01:12]} 17. Ne4 {[%emt 0:00:40]} Nxe4 {[%emt 0:00:20]} 18. dxe4 {[%emt 0:00:07]} Rd8 {[%emt 0:08:57]} 19. Qd3 {[%emt 0:02:41]} g6 {[%emt 0:01:41]} 20. Bh3 {[%emt 0:07:48]} Kg7 {[%emt 0:01:11]} 21. Reb1 {[%emt 0:02:26]} Rfe8 {[%emt 0:03:58]} 22. Rb2 {[%emt 0:03:59]} Re7 {[%emt 0:00:57]} 23. Bg2 {[%emt 0:03:30]} Ra8 {[%emt 0:00:27]} 24. Nf3 {[%emt 0:01:54]} Bg8 {[%emt 0:13:03]} 25. Ne1 {[%emt 0:01:01]} f6 {[%emt 0:00:09]} 26. Qc2 {[%emt 0:01:31]} Rc7 {[%emt 0:01:32]} 27. Nd3 {[%emt 0:02:54]} Qe7 {[%emt 0:01:49]} 28. h4 {[%emt 0:02:36]} Nd8 {[%emt 0:04:54]} 29. a4 {[%emt 0:07:47]} Nc6 {[%emt 0:00:48]} 30. Qe2 {[%emt 0:00:39]} Be6 {[%emt 0:00:26]} 31. Rf1 {[%emt 0:00:12]} Nb4 {[%emt 0:01:22]} 32. Rd2 {[%emt 0:00:31]} Nxd3 {[%emt 0:06:57]} 33. Rxd3 {[%emt 0:00:25]} Ra6 {[%emt 0:00:36]} 34. Kh2 {[%emt 0:00:39]} Rb6 {[%emt 0:00:32]} 35. Bh3 {[%emt 0:02:41]} Bf7 {[%emt 0:09:16]} 36. Bg4 {[%emt 0:00:27]} Qa3 {[%emt 0:00:38]} 37. Qf3 {[%emt 0:02:06]} Qe7 {[%emt 0:02:42]} 38. Bh3 {[%emt 0:00:47]} Rcc6 {[%emt 0:00:21]} 39. Rg1 {[%emt 0:06:23]} Qa3 {[%emt 0:00:52]} 40. Bd7 {[%emt 0:01:27]} Rc7 {[%emt 0:00:35]} 41. Bb5 {[%emt 0:35:47]} Qe7 {[%emt 0:30:52]} 42. Re1 {[%emt 0:00:00]} Rd6 {[%emt 0:00:00]} 43. Qg4 {[%emt 0:00:00]} Be6 {[%emt 0:00:00]} 44. Qe2 {[%emt 0:00:00]} Bc8 {[%emt 0:00:00]} 45. h5 {[%emt 0:00:00]} Qe6 {[%emt 0:00:00]} 46. hxg6 {[%emt 0:00:00]} Qg4 {[%emt 0:00:00]} 47. Qxg4 {[%emt 0:02:20]} 1/2-1/2

[Event "FIDE WSTC Open 65 2025"]
[Site "Prague"]
[Date "2025.02.17"]
[Round "1.2"]
[White "Jussupow, Artur"]
[Black "Svanda, Pavel"]
[Result "1-0"]
[Annotator "ChessBase"]
[ECO "D05"]
[WhiteElo "2559"]
[BlackElo "2080"]
[PlyCount "63"]
[EventDate "2025.02.17"]
[EventType "team-tourn"]
[EventCountry "CZE"]
[SourceTitle "playchess.com"]
[Source "ChessBase"]
[SourceQuality "1"]
[TimeControl "40/5400+30:1800+30"]

1. d4 {[%emt 0:00:11]} d5 {[%emt 0:00:11]} 2. Nf3 {[%emt 0:00:16]} Nf6 {[%emt 0:00:27]} 3. e3 {[%emt 0:00:09]} e6 {[%emt 0:00:16]} 4. Bd3 {[%emt 0:00:40]} c5 {[%emt 0:01:08]} 5. b3 {[%emt 0:00:47]} Be7 {[%emt 0:04:34]} 6. O-O {[%emt 0:06:59]} Nc6 {[%emt 0:01:57]} 7. Bb2 {[%emt 0:00:08]} O-O {[%emt 0:02:09]} 8. Nbd2 {[%emt 0:02:47]} b6 {[%emt 0:07:46]} 9. Ne5 {[%emt 0:03:17]} Bb7 {[%emt 0:03:27]} 10. a3 {[%emt 0:02:00]} a6 {[%emt 0:17:12]} 11. Qe2 {[%emt 0:10:26]} b5 {[%emt 0:01:02]} 12. Nxc6 {[%emt 0:02:45]} Bxc6 {[%emt 0:01:46]} 13. dxc5 {[%emt 0:00:11]} Bxc5 {[%emt 0:00:27]} 14. Nf3 {[%emt 0:01:49]} Be7 {[%emt 0:08:38]} 15. Ne5 {[%emt 0:15:25]} Be8 {[%emt 0:03:41]} 16. c4 {[%emt 0:12:56]} bxc4 {[%emt 0:02:08]} 17. bxc4 {[%emt 0:00:07]} a5 {[%emt 0:00:49]} 18. Rfc1 {[%emt 0:04:58]} Bd6 {[%emt 0:05:11]} 19. c5 {[%emt 0:03:21]} Bc7 {[%emt 0:00:53]} 20. c6 {[%emt 0:01:06]} g6 {[%emt 0:02:21]} 21. f4 {[%emt 0:04:44]} Ne4 {[%emt 0:04:48]} 22. Bxe4 {[%emt 0:01:19]} dxe4 {[%emt 0:00:07]} 23. Rd1 {[%emt 0:00:12]} Qc8 {[%emt 0:02:38]} 24. Ng4 {[%emt 0:06:28]} e5 {[%emt 0:04:34]} 25. Nf6+ {[%emt 0:02:28]} Kg7 {[%emt 0:00:23]} 26. Nd7 {[%emt 0:00:27]} Bxd7 {[%emt 0:01:36]} 27. Rxd7 {[%emt 0:00:37]} Kg8 {[%emt 0:00:22]} 28. Qc4 {[%emt 0:01:27]} Bb6 {[%emt 0:02:16]} 29. Qxe4 {[%emt 0:02:56]} Re8 {[%emt 0:00:15]} 30. f5 {[%emt 0:00:45]} Rb8 {[%emt 0:03:30]} 31. Qd5 {[%emt 0:01:33]} Rf8 {[%emt 0:00:34]} 32. Qxe5 {[%emt 0:03:37]} 1-0

[Event "FIDE WSTC Open 65 2025"]
[Site "Prague"]
[Date "2025.02.17"]
[Round "1.3"]
[White "Nemec, Pavel"]
[Black "Meister, Jakob"]
[Result "1-0"]
[Annotator "ChessBase"]
[ECO "B30"]
[WhiteElo "2117"]
[BlackElo "2418"]
[PlyCount "97"]
[EventDate "2025.02.17"]
[EventType "team-tourn"]
[EventCountry "CZE"]
[SourceTitle "playchess.com"]
[Source "ChessBase"]
[SourceQuality "1"]
[TimeControl "40/5400+30:1800+30"]

1. e4 {[%emt 0:00:06]} c5 {[%emt 0:00:09]} 2. Nf3 {[%emt 0:00:11]} Nc6 {[%emt 0:00:18]} 3. Bb5 {[%emt 0:00:20]} Na5 {[%emt 0:00:27]} 4. O-O {[%emt 0:02:21]} a6 {[%emt 0:00:15]} 5. Be2 {[%emt 0:00:06]} b5 {[%emt 0:02:26]} 6. d4 {[%emt 0:01:30]} cxd4 {[%emt 0:00:22]} 7. Nxd4 {[%emt 0:00:09]} Bb7 {[%emt 0:00:29]} 8. a4 {[%emt 0:07:28]} b4 {[%emt 0:03:05]} 9. c3 {[%emt 0:02:55]} e6 {[%emt 0:01:02]} 10. e5 {[%emt 0:04:31]} Qc7 {[%emt 0:13:11]} 11. Bf4 {[%emt 0:01:01]} d5 {[%emt 0:10:26]} 12. exd6 {[%emt 0:02:23]} Bxd6 {[%emt 0:00:20]} 13. Nxe6 {[%emt 0:00:23]} fxe6 {[%emt 0:01:11]} 14. Bxd6 {[%emt 0:00:24]} Qb6 {[%emt 0:00:30]} 15. Bxb4 {[%emt 0:01:38]} Rd8 {[%emt 0:01:01]} 16. Bxa5 {[%emt 0:07:50]} Qxa5 {[%emt 0:00:03]} 17. Qb3 {[%emt 0:00:22]} Qd5 {[%emt 0:01:40]} 18. Qxd5 {[%emt 0:00:10]} exd5 {[%emt 0:00:02]} 19. Re1 {[%emt 0:03:15]} Kf7 {[%emt 0:01:18]} 20. Nd2 {[%emt 0:02:10]} Nf6 {[%emt 0:00:03]} 21. Nb3 {[%emt 0:00:46]} Rd6 {[%emt 0:00:53]} 22. Nc5 {[%emt 0:01:21]} Bc8 {[%emt 0:00:32]} 23. a5 {[%emt 0:00:50]} Nd7 {[%emt 0:02:25]} 24. Nd3 {[%emt 0:02:36]} d4 {[%emt 0:00:51]} 25. c4 {[%emt 0:01:07]} Re8 {[%emt 0:02:17]} 26. Bh5+ {[%emt 0:01:17]} g6 {[%emt 0:00:05]} 27. Rxe8 {[%emt 0:00:09]} Kxe8 {[%emt 0:00:04]} 28. Re1+ {[%emt 0:00:28]} Kd8 {[%emt 0:01:41]} 29. Bf3 {[%emt 0:01:14]} Nf6 {[%emt 0:06:03]} 30. c5 {[%emt 0:01:38]} Re6 {[%emt 0:00:13]} 31. Kf1 {[%emt 0:01:27]} Kc7 {[%emt 0:01:38]} 32. Nb4 {[%emt 0:01:36]} Rxe1+ {[%emt 0:01:31]} 33. Kxe1 {[%emt 0:00:07]} Nd7 {[%emt 0:00:16]} 34. Nd5+ {[%emt 0:06:46]} Kd8 {[%emt 0:00:20]} 35. b4 {[%emt 0:04:00]} Ne5 {[%emt 0:02:03]} 36. Be4 {[%emt 0:04:36]} Bb7 {[%emt 0:02:03]} 37. Kd2 {[%emt 0:01:12]} g5 {[%emt 0:01:00]} 38. f3 {[%emt 0:00:51]} h5 {[%emt 0:01:17]} 39. Nf6 {[%emt 0:00:51]} Bxe4 {[%emt 0:00:24]} 40. Nxe4 {[%emt 0:00:22]} g4 {[%emt 0:00:45]} 41. fxg4 {[%emt 0:31:00]} hxg4 {[%emt 0:30:02]} 42. h3 {[%emt 0:00:54]} gxh3 {[%emt 0:00:12]} 43. gxh3 {[%emt 0:00:01]} Nc6 {[%emt 0:00:02]} 44. Kd3 {[%emt 0:01:47]} Nxb4+ {[%emt 0:01:14]} 45. Kxd4 {[%emt 0:00:07]} Ke7 {[%emt 0:01:22]} 46. Nd2 {[%emt 0:05:32]} Ke6 {[%emt 0:05:58]} 47. Nb3 {[%emt 0:01:09]} Nc6+ {[%emt 0:00:19]} 48. Ke4 {[%emt 0:00:07]} Ke7 {[%emt 0:02:04]} 49. h4 {[%emt 0:02:34]} 1-0

[Event "FIDE WSTC Open 65 2025"]
[Site "Prague"]
[Date "2025.02.17"]
[Round "1.4"]
[White "Koehler, Gerhard"]
[Black "Vavruska, Antonin"]
[Result "1/2-1/2"]
[Annotator "ChessBase"]
[ECO "A91"]
[WhiteElo "2215"]
[BlackElo "1926"]
[PlyCount "84"]
[EventDate "2025.02.17"]
[EventType "team-tourn"]
[EventCountry "CZE"]
[SourceTitle "playchess.com"]
[Source "ChessBase"]
[SourceQuality "1"]
[TimeControl "40/5400+30:1800+30"]

1. c4 {[%emt 0:00:03]} e6 {[%emt 0:00:44]} 2. Nc3 {[%emt 0:00:16]} f5 {[%emt 0:02:20]} 3. g3 {[%emt 0:00:49]} Nf6 {[%emt 0:00:17]} 4. Bg2 {[%emt 0:00:17]} d6 {[%emt 0:02:31]} 5. d4 {[%emt 0:01:20]} Be7 {[%emt 0:00:03]} 6. Nh3 {[%emt 0:00:34]} O-O {[%emt 0:02:25]} 7. O-O {[%emt 0:01:24]} c6 {[%emt 0:04:30]} 8. Re1 {[%emt 0:05:42]} e5 {[%emt 0:05:12]} 9. b3 {[%emt 0:03:50]} h6 {[%emt 0:06:34]} 10. Ba3 {[%emt 0:10:24]} Qc7 {[%emt 0:03:03]} 11. Qd2 {[%emt 0:04:37]} a5 {[%emt 0:09:33]} 12. Rad1 {[%emt 0:07:28]} Na6 {[%emt 0:08:01]} 13. f3 {[%emt 0:10:25]} Nb4 {[%emt 0:02:08]} 14. e3 {[%emt 0:02:41]} Bd7 {[%emt 0:03:11]} 15. Bb2 {[%emt 0:01:40]} Rad8 {[%emt 0:00:46]} 16. Nf2 {[%emt 0:01:33]} Bc8 {[%emt 0:02:27]} 17. a3 {[%emt 0:02:23]} Na6 {[%emt 0:00:02]} 18. Qc2 {[%emt 0:01:51]} Nh7 {[%emt 0:12:20]} 19. Na4 {[%emt 0:11:07]} Bf6 {[%emt 0:06:00]} 20. f4 {[%emt 0:07:07]} e4 {[%emt 0:01:20]} 21. Bf1 {[%emt 0:02:35]} b6 {[%emt 0:08:59]} 22. Rd2 {[%emt 0:06:12]} Be7 {[%emt 0:04:20]} 23. Rc1 {[%emt 0:04:47]} Nf6 {[%emt 0:00:29]} 24. Be2 {[%emt 0:01:46]} Kh8 {[%emt 0:02:09]} 25. Kh1 {[%emt 0:01:10]} Rfe8 {[%emt 0:04:54]} 26. Rg1 {[%emt 0:00:34]} d5 {[%emt 0:01:29]} 27. Nc3 {[%emt 0:01:35]} Qb7 {[%emt 0:03:55]} 28. cxd5 {[%emt 0:03:06]} Nxd5 {[%emt 0:00:30]} 29. Nxd5 {[%emt 0:02:12]} cxd5 {[%emt 0:00:01]} 30. g4 {[%emt 0:00:17]} Bh4 {[%emt 0:00:44]} 31. Bb5 {[%emt 0:01:11]} Bd7 {[%emt 0:00:41]} 32. Bxd7 {[%emt 0:01:31]} Qxd7 {[%emt 0:00:07]} 33. Qd1 {[%emt 0:00:35]} Bxf2 {[%emt 0:00:49]} 34. Rxf2 {[%emt 0:00:01]} fxg4 {[%emt 0:00:27]} 35. Rxg4 {[%emt 0:00:15]} Nc7 {[%emt 0:00:18]} 36. a4 {[%emt 0:00:36]} Qf5 {[%emt 0:00:26]} 37. Rfg2 {[%emt 0:00:28]} Ne6 {[%emt 0:00:20]} 38. Ba3 {[%emt 0:00:04]} Rd7 {[%emt 0:00:38]} 39. Qe2 {[%emt 0:00:56]} Nc7 {[%emt 0:01:20]} 40. Rg6 {[%emt 0:01:49]} Re6 {[%emt 0:00:21]} 41. R6g3 {[%emt 0:07:48]} Rc6 {[%emt 0:01:03]} 42. Rg1 {[%emt 0:05:14]} Rf7 {[%emt 0:07:40]} 1/2-1/2

[Event "FIDE WSTC Open 65 2025"]
[Site "Prague"]
[Date "2025.02.17"]
[Round "1.5"]
[White "Nunn, John D M"]
[Black "Bergstrom, Rolf"]
[Result "1-0"]
[Annotator "ChessBase"]
[ECO "B07"]
[WhiteElo "2533"]
[BlackElo "2160"]
[PlyCount "69"]
[EventDate "2025.02.17"]
[EventType "team-tourn"]
[EventCountry "CZE"]
[SourceTitle "playchess.com"]
[Source "ChessBase"]
[SourceQuality "1"]
[TimeControl "40/5400+30:1800+30"]

1. e4 {[%emt 0:00:13]} d6 {[%emt 0:00:42]} 2. d4 {[%emt 0:00:10]} Nf6 {[%emt 0:00:14]} 3. Nc3 {[%emt 0:00:09]} e5 {[%emt 0:00:08]} 4. Nge2 {[%emt 0:00:36]} Nbd7 {[%emt 0:00:47]} 5. a4 {[%emt 0:00:29]} Be7 {[%emt 0:01:12]} 6. h3 {[%emt 0:00:17]} h5 {[%emt 0:01:01]} 7. g3 {[%emt 0:00:32]} c6 {[%emt 0:00:48]} 8. Bg2 {[%emt 0:00:19]} O-O {[%emt 0:02:35]} 9. O-O {[%emt 0:02:53]} b6 {[%emt 0:01:36]} 10. f4 {[%emt 0:04:07]} Qc7 {[%emt 0:08:40]} 11. Qe1 {[%emt 0:08:31]} a6 {[%emt 0:04:08]} 12. Bf3 {[%emt 0:11:54]} Bb7 {[%emt 0:10:55]} 13. g4 {[%emt 0:00:43]} hxg4 {[%emt 0:01:51]} 14. hxg4 {[%emt 0:00:05]} Nh7 {[%emt 0:01:07]} 15. Qg3 {[%emt 0:09:56]} exf4 {[%emt 0:15:50]} 16. Bxf4 {[%emt 0:00:55]} Ng5 {[%emt 0:00:25]} 17. Bg2 {[%emt 0:13:16]} b5 {[%emt 0:02:25]} 18. Rae1 {[%emt 0:01:56]} Rae8 {[%emt 0:09:04]} 19. Qd3 {[%emt 0:06:03]} g6 {[%emt 0:02:02]} 20. axb5 {[%emt 0:06:10]} axb5 {[%emt 0:00:34]} 21. Nd1 {[%emt 0:01:28]} c5 {[%emt 0:05:43]} 22. Qxb5 {[%emt 0:03:55]} Ne6 {[%emt 0:06:35]} 23. Bh6 {[%emt 0:05:06]} Ng7 {[%emt 0:00:43]} 24. Nf2 {[%emt 0:07:39]} cxd4 {[%emt 0:03:34]} 25. Nxd4 {[%emt 0:00:11]} Ne5 {[%emt 0:04:56]} 26. Qb3 {[%emt 0:00:26]} Ba6 {[%emt 0:02:25]} 27. Nd3 {[%emt 0:03:07]} Nxg4 {[%emt 0:02:22]} 28. Bxg7 {[%emt 0:00:28]} Kxg7 {[%emt 0:00:09]} 29. Rxf7+ {[%emt 0:03:46]} Kh6 {[%emt 0:02:33]} 30. Nf4 {[%emt 0:00:39]} Bh4 {[%emt 0:03:37]} 31. Rxc7 {[%emt 0:02:58]} Bf2+ {[%emt 0:00:31]} 32. Kh1 {[%emt 0:00:06]} Rxf4 {[%emt 0:00:37]} 33. Qh3+ {[%emt 0:01:10]} Kg5 {[%emt 0:00:23]} 34. Nf3+ {[%emt 0:00:20]} Kf6 {[%emt 0:00:41]} 35. Qh7 {[%emt 0:00:15]} 1-0

[Event "FIDE WSTC Open 65 2025"]
[Site "Prague"]
[Date "2025.02.17"]
[Round "1.6"]
[White "Soderberg, Per"]
[Black "Kosten, Anthony C."]
[Result "0-1"]
[Annotator "ChessBase"]
[ECO "C44"]
[WhiteElo "2065"]
[BlackElo "2372"]
[PlyCount "82"]
[EventDate "2025.02.17"]
[EventType "team-tourn"]
[EventCountry "CZE"]
[SourceTitle "playchess.com"]
[Source "ChessBase"]
[SourceQuality "1"]
[TimeControl "40/5400+30:1800+30"]

1. e4 {[%emt 0:00:04]} e5 {[%emt 0:00:08]} 2. Nf3 {[%emt 0:00:06]} Nc6 {[%emt 0:00:08]} 3. c3 {[%emt 0:00:06]} Nf6 {[%emt 0:00:09]} 4. d3 {[%emt 0:00:10]} d5 {[%emt 0:00:18]} 5. Qc2 {[%emt 0:00:04]} h6 {[%emt 0:01:33]} 6. Be2 {[%emt 0:00:54]} Bd6 {[%emt 0:00:33]} 7. O-O {[%emt 0:01:52]} O-O {[%emt 0:02:30]} 8. Nbd2 {[%emt 0:03:01]} Re8 {[%emt 0:00:45]} 9. Re1 {[%emt 0:00:37]} Ne7 {[%emt 0:08:36]} 10. Nf1 {[%emt 0:14:58]} Ng6 {[%emt 0:01:20]} 11. Ng3 {[%emt 0:02:57]} c6 {[%emt 0:02:44]} 12. a4 {[%emt 0:03:24]} a5 {[%emt 0:00:49]} 13. h3 {[%emt 0:05:27]} Be6 {[%emt 0:02:28]} 14. Bf1 {[%emt 0:02:35]} Qd7 {[%emt 0:07:17]} 15. Bd2 {[%emt 0:09:03]} Bc7 {[%emt 0:08:13]} 16. Rad1 {[%emt 0:03:47]} Bb6 {[%emt 0:06:46]} 17. Be3 {[%emt 0:10:30]} Bxe3 {[%emt 0:04:27]} 18. fxe3 {[%emt 0:01:01]} dxe4 {[%emt 0:01:29]} 19. dxe4 {[%emt 0:00:12]} Qc7 {[%emt 0:00:40]} 20. c4 {[%emt 0:05:43]} Qb6 {[%emt 0:04:28]} 21. Rd3 {[%emt 0:03:48]} Nd7 {[%emt 0:03:47]} 22. Rc3 {[%emt 0:02:49]} Nc5 {[%emt 0:00:58]} 23. Kh2 {[%emt 0:01:45]} Rad8 {[%emt 0:01:00]} 24. h4 {[%emt 0:01:17]} Bc8 {[%emt 0:04:58]} 25. h5 {[%emt 0:01:11]} Nf8 {[%emt 0:00:26]} 26. Nh4 {[%emt 0:04:23]} Nh7 {[%emt 0:02:03]} 27. Be2 {[%emt 0:03:07]} Rd6 {[%emt 0:03:24]} 28. Nhf5 {[%emt 0:00:53]} Bxf5 {[%emt 0:00:21]} 29. Nxf5 {[%emt 0:02:00]} Qd8 {[%emt 0:00:42]} 30. Rd1 {[%emt 0:02:40]} Rxd1 {[%emt 0:00:15]} 31. Bxd1 {[%emt 0:00:15]} Nxe4 {[%emt 0:02:50]} 32. Qxe4 {[%emt 0:03:02]} Qxd1 {[%emt 0:00:16]} 33. Qh4 {[%emt 0:00:45]} e4 {[%emt 0:17:57]} 34. c5 {[%emt 0:06:33]} Re5 {[%emt 0:05:26]} 35. Ng3 {[%emt 0:04:37]} Nf6 {[%emt 0:00:13]} 36. Rc4 {[%emt 0:00:22]} Ng4+ {[%emt 0:03:06]} 37. Kh3 {[%emt 0:00:24]} Rg5 {[%emt 0:02:50]} 38. Rd4 {[%emt 0:01:18]} Qg1 {[%emt 0:00:58]} 39. Qxg4 {[%emt 0:01:18]} Rxg4 {[%emt 0:00:07]} 40. Kxg4 {[%emt 0:00:08]} Qxe3 {[%emt 0:00:25]} 41. Rxe4 {[%emt 0:31:12]} f5+ {[%emt 0:30:17]} 0-1

[Event "FIDE WSTC Open 65 2025"]
[Site "Prague"]
[Date "2025.02.17"]
[Round "1.7"]
[White "Large, Peter G"]
[Black "Braathen, Tom"]
[Result "1-0"]
[Annotator "ChessBase"]
[ECO "B23"]
[WhiteElo "2314"]
[BlackElo "1963"]
[PlyCount "87"]
[EventDate "2025.02.17"]
[EventType "team-tourn"]
[EventCountry "CZE"]
[SourceTitle "playchess.com"]
[Source "ChessBase"]
[SourceQuality "1"]
[TimeControl "40/5400+30:1800+30"]

1. e4 {[%emt 0:00:34]} c5 {[%emt 0:00:10]} 2. Nc3 {[%emt 0:00:11]} Nc6 {[%emt 0:00:17]} 3. Bb5 {[%emt 0:00:10]} Nd4 {[%emt 0:01:05]} 4. Nf3 {[%emt 0:00:09]} a6 {[%emt 0:00:26]} 5. Bd3 {[%emt 0:00:21]} g6 {[%emt 0:00:49]} 6. O-O {[%emt 0:00:33]} Bg7 {[%emt 0:00:14]} 7. Re1 {[%emt 0:01:42]} Nh6 {[%emt 0:05:37]} 8. Nxd4 {[%emt 0:23:18]} cxd4 {[%emt 0:01:32]} 9. Ne2 {[%emt 0:00:07]} O-O {[%emt 0:10:02]} 10. c3 {[%emt 0:00:46]} dxc3 {[%emt 0:01:13]} 11. dxc3 {[%emt 0:04:36]} Ng4 {[%emt 0:08:39]} 12. Nd4 {[%emt 0:03:23]} d5 {[%emt 0:08:38]} 13. h3 {[%emt 0:07:21]} Ne5 {[%emt 0:20:29]} 14. Bc2 {[%emt 0:01:06]} Nc6 {[%emt 0:04:30]} 15. Nxc6 {[%emt 0:08:19]} bxc6 {[%emt 0:00:11]} 16. Bg5 {[%emt 0:00:26]} Re8 {[%emt 0:02:28]} 17. Qf3 {[%emt 0:05:26]} Be6 {[%emt 0:02:09]} 18. exd5 {[%emt 0:13:53]} cxd5 {[%emt 0:02:28]} 19. Ba4 {[%emt 0:00:45]} Bd7 {[%emt 0:01:55]} 20. Bb3 {[%emt 0:00:15]} Be6 {[%emt 0:00:26]} 21. Rad1 {[%emt 0:00:37]} Qb6 {[%emt 0:01:15]} 22. Bxd5 {[%emt 0:05:45]} Bxd5 {[%emt 0:04:30]} 23. Qxd5 {[%emt 0:00:11]} e6 {[%emt 0:03:13]} 24. Qd2 {[%emt 0:11:30]} Rec8 {[%emt 0:04:53]} 25. Bf4 {[%emt 0:03:48]} Qa5 {[%emt 0:01:22]} 26. a3 {[%emt 0:00:37]} Qb5 {[%emt 0:02:17]} 27. Qe2 {[%emt 0:02:15]} Rc4 {[%emt 0:05:27]} 28. Be5 {[%emt 0:01:46]} Bxe5 {[%emt 0:01:15]} 29. Qxe5 {[%emt 0:00:06]} Qxb2 {[%emt 0:00:10]} 30. Re3 {[%emt 0:02:08]} Qb5 {[%emt 0:04:26]} 31. Qf6 {[%emt 0:01:09]} Qf5 {[%emt 0:01:22]} 32. Qxf5 {[%emt 0:01:40]} gxf5 {[%emt 0:00:17]} 33. Rd7 {[%emt 0:01:12]} Rac8 {[%emt 0:00:38]} 34. Ra7 {[%emt 0:00:13]} Ra4 {[%emt 0:01:52]} 35. Rg3+ {[%emt 0:00:24]} Kf8 {[%emt 0:00:52]} 36. Rd3 {[%emt 0:00:03]} Rxa3 {[%emt 0:00:31]} 37. Rdd7 {[%emt 0:00:19]} Raxc3 {[%emt 0:00:22]} 38. Rxf7+ {[%emt 0:00:07]} Kg8 {[%emt 0:00:20]} 39. Rg7+ {[%emt 0:00:07]} Kh8 {[%emt 0:00:34]} 40. Rxh7+ {[%emt 0:00:05]} Kg8 {[%emt 0:00:05]} 41. h4 {[%emt 0:30:43]} a5 {[%emt 0:02:40]} 42. h5 {[%emt 0:00:00]} a4 {[%emt 0:00:23]} 43. Rag7+ {[%emt 0:00:00]} Kf8 {[%emt 0:00:07]} 44. h6 {[%emt 0:00:00]} 1-0

[Event "FIDE WSTC Open 65 2025"]
[Site "Prague"]
[Date "2025.02.17"]
[Round "1.8"]
[White "Frisen, Hakan"]
[Black "Chapman, Terry P D"]
[Result "1/2-1/2"]
[Annotator "ChessBase"]
[ECO "E32"]
[WhiteElo "1956"]
[BlackElo "2278"]
[PlyCount "88"]
[EventDate "2025.02.17"]
[EventType "team-tourn"]
[EventCountry "CZE"]
[SourceTitle "playchess.com"]
[Source "ChessBase"]
[SourceQuality "1"]
[TimeControl "40/5400+30:1800+30"]

1. d4 {[%emt 0:00:12]} Nf6 {[%emt 0:00:24]} 2. c4 {[%emt 0:00:35]} e6 {[%emt 0:00:20]} 3. Nc3 {[%emt 0:00:30]} Bb4 {[%emt 0:00:44]} 4. Qc2 {[%emt 0:00:35]} O-O {[%emt 0:00:41]} 5. a3 {[%emt 0:01:01]} Bxc3+ {[%emt 0:01:12]} 6. Qxc3 {[%emt 0:00:22]} d6 {[%emt 0:02:24]} 7. Nf3 {[%emt 0:01:34]} Re8 {[%emt 0:03:35]} 8. g3 {[%emt 0:02:05]} e5 {[%emt 0:01:51]} 9. dxe5 {[%emt 0:09:37]} dxe5 {[%emt 0:01:21]} 10. Bg2 {[%emt 0:01:39]} Nc6 {[%emt 0:06:14]} 11. O-O {[%emt 0:06:38]} e4 {[%emt 0:03:32]} 12. Ng5 {[%emt 0:11:33]} Nd4 {[%emt 0:18:58]} 13. Re1 {[%emt 0:03:51]} Bg4 {[%emt 0:03:06]} 14. Kf1 {[%emt 0:18:18]} h6 {[%emt 0:05:35]} 15. Nh3 {[%emt 0:03:41]} c5 {[%emt 0:07:00]} 16. b4 {[%emt 0:01:47]} b6 {[%emt 0:02:46]} 17. Bb2 {[%emt 0:01:37]} Qe7 {[%emt 0:05:40]} 18. Nf4 {[%emt 0:01:10]} Rad8 {[%emt 0:01:39]} 19. h3 {[%emt 0:02:40]} Bf5 {[%emt 0:04:19]} 20. Red1 {[%emt 0:03:39]} e3 {[%emt 0:05:01]} 21. fxe3 {[%emt 0:06:14]} Nc2 {[%emt 0:07:05]} 22. Nd5 {[%emt 0:01:53]} Rxd5 {[%emt 0:00:21]} 23. Rxd5 {[%emt 0:03:15]} Be4 {[%emt 0:04:46]} 24. Re5 {[%emt 0:03:39]} Qxe5 {[%emt 0:02:16]} 25. Qxe5 {[%emt 0:00:10]} Rxe5 {[%emt 0:06:47]} 26. Bxe5 {[%emt 0:01:40]} Nxa1 {[%emt 0:00:33]} 27. Bxa1 {[%emt 0:00:54]} Bxg2+ {[%emt 0:00:05]} 28. Kxg2 {[%emt 0:00:10]} Ne4 {[%emt 0:00:03]} 29. Be5 {[%emt 0:04:08]} f6 {[%emt 0:05:31]} 30. Bb8 {[%emt 0:01:29]} cxb4 {[%emt 0:00:12]} 31. axb4 {[%emt 0:01:30]} a5 {[%emt 0:01:08]} 32. bxa5 {[%emt 0:01:32]} bxa5 {[%emt 0:00:02]} 33. Ba7 {[%emt 0:00:35]} Kf7 {[%emt 0:00:08]} 34. Bd4 {[%emt 0:00:45]} Ke6 {[%emt 0:00:04]} 35. g4 {[%emt 0:01:13]} Nd2 {[%emt 0:00:38]} 36. c5 {[%emt 0:00:40]} Nb3 {[%emt 0:01:42]} 37. Bc3 {[%emt 0:01:14]} a4 {[%emt 0:00:01]} 38. Bb4 {[%emt 0:01:50]} Kd5 {[%emt 0:00:02]} 39. Kf3 {[%emt 0:00:30]} Nxc5 {[%emt 0:00:23]} 40. Kf4 {[%emt 0:01:40]} g6 {[%emt 0:00:27]} 41. h4 {[%emt 0:03:18]} Ne6+ {[%emt 0:03:26]} 42. Kf3 {[%emt 0:00:34]} f5 {[%emt 0:01:13]} 43. gxf5 {[%emt 0:04:17]} gxf5 {[%emt 0:00:05]} 44. Ba3 {[%emt 0:01:03]} Ke5 {[%emt 0:00:15]} 1/2-1/2